bitfinex/quotes_ETHUSD_20241019
["timestamp","ask_amount","ask_price","bid_price","bid_amount"]
[1729309757472,0.7774,2646.4,2645.5,0.83177574]
[1729309757683,0.7774,2646.4,2645.6,0.88240136]
[1729309757852,0.7774,2646.4,2645.7,0.28235915]
[1729309758055,0.7774,2646.4,2645.6,0.60004221]
[1729309758252,0.7774,2646.4,2645.7,0.2823513]
[1729309758446,0.7774,2646.4,2645.6,0.60004221]
[1729309758778,0.7774,2646.4,2645.7,0.28237431]
[1729309758985,0.7774,2646.4,2645.8,0.28237431]
[1729309759278,0.7774,2646.4,2645.7,0.5579522]
[1729309759689,0.7774,2646.4,2645.8,0.28241301]
[1729309759996,0.7774,2646.4,2645.7,0.5579522]
[1729309760156,0.7774,2646.4,2645.8,0.28241299]
[1729309760352,0.7774,2646.4,2645.7,0.5579522]
[1729309760552,0.7774,2646.4,2645.8,0.28248562]
[1729309760762,0.7774,2646.4,2645.7,0.5579522]
[1729309760978,0.7774,2646.4,2645.8,0.28248417]
[1729309761161,0.7774,2646.4,2645.5,3.58182585]
[1729309761375,0.7774,2646.4,2645.6,0.95577058]
[1729309761582,0.7774,2646.4,2645.7,0.28259799]
[1729309761786,0.7774,2646.4,2645.8,0.28259799]
[1729309762094,0.7774,2646.4,2645.6,0.67317259]
[1729309762274,0.7774,2646.4,2645.7,0.28260474]
[1729309762593,0.7774,2646.4,2645.8,0.28260474]
[1729309762888,0.7774,2646.4,2645.6,0.67317259]
[1729309763127,0.7774,2646.4,2645.7,0.28275555]
[1729309763296,0.7774,2646.4,2645.8,0.28275555]
[1729309763501,0.7774,2646.4,2645.9,0.28293429]
[1729309763661,0.7774,2646.4,2645.6,0.67317259]
[1729309763856,0.7774,2646.4,2645.7,0.282915]
[1729309764192,0.7774,2646.4,2645.8,0.282915]
[1729309764397,0.7774,2646.4,2645.9,3.282915]
[1729309764551,0.7774,2646.4,2645.6,0.67317259]
[1729309764750,0.7774,2646.4,2645.7,0.73558248]
[1729309764951,0.7774,2646.4,2645.8,0.28291634]
[1729309765159,0.7774,2646.4,2645.7,0.07558402]
[1729309765370,0.7774,2646.4,2645.9,3.0]
[1729309765596,0.7774,2646.4,2645.7,0.07558402]
[1729309765775,0.7774,2646.4,2645.8,0.28289612]
[1729309765973,0.7774,2646.4,2645.9,0.28289612]
[1729309766200,0.7774,2646.4,2645.7,0.07558402]
[1729309766501,0.7774,2646.4,2645.8,0.28289393]
[1729309766671,0.7774,2646.4,2645.9,0.28289393]
[1729309766883,0.7774,2646.4,2645.7,0.54458621]
[1729309767217,0.7774,2646.4,2645.8,0.28289704]
[1729309767519,0.7774,2646.4,2645.5,1.69710547]
[1729309767679,0.7774,2646.4,2645.9,0.28291378]
[1729309768012,0.7774,2646.4,2645.7,0.45266204]
[1729309768209,0.7774,2646.4,2645.8,0.28291769]
[1729309768594,0.7774,2646.4,2645.9,0.28291769]
[1729309768909,0.7774,2646.4,2645.5,0.1300925]
[1729309769212,0.7774,2646.4,2645.6,0.73561369]
[1729309769408,0.7774,2646.4,2645.7,0.73561369]
[1729309769723,0.7774,2646.4,2645.8,0.28292834]
[1729309770017,0.7774,2646.4,2645.7,0.45268535]
[1729309770179,0.7774,2646.4,2645.8,0.28291761]
[1729309770517,0.7774,2646.4,2645.9,0.28291761]
[1729309770674,0.7774,2646.4,2645.6,0.45268535]
[1729309771018,0.7774,2646.4,2645.7,0.28293442]
[1729309771314,0.7774,2646.4,2645.8,0.28293442]
[1729309771509,0.7774,2646.4,2645.6,0.60447662]
[1729309771717,0.7774,2646.4,2645.9,3.0]
[1729309772012,0.7774,2646.4,2645.6,0.60447662]
[1729309772182,0.7774,2646.4,2645.7,1.10908117]
[1729309772389,0.7774,2646.4,2645.8,0.28293241]
[1729309772699,0.7774,2646.4,2645.9,0.28293241]
[1729309772903,0.7774,2646.4,2645.7,0.45270639]
[1729309773075,0.7774,2646.4,2645.8,0.28294197]
[1729309773275,0.7774,2646.4,2645.9,0.28294197]
[1729309773476,0.7774,2646.4,2645.7,0.45271893]
[1729309773700,0.7774,2646.4,2645.8,0.28295519]
[1729309773904,0.7774,2646.4,2645.9,0.28295519]
[1729309774102,0.7774,2646.4,2645.7,0.21498244]
[1729309774304,0.7774,2646.4,2645.8,0.28295547]
[1729309774513,0.7774,2646.4,2645.9,0.28295547]
[1729309774781,0.7774,2646.4,2645.7,0.21498244]
[1729309775000,0.7774,2646.4,2645.9,3.0]
[1729309775200,0.7774,2646.4,2645.7,0.21498244]
[1729309775419,0.7774,2646.4,2645.8,0.2830181]
[1729309775635,0.7774,2646.4,2645.7,0.1944]
[1729309775778,0.7774,2646.4,2645.9,0.2829871]
[1729309776277,0.7774,2646.4,2646.0,0.2829871]
[1729309776474,0.7774,2646.4,2646.1,0.2829871]
[1729309776677,0.7774,2646.4,2645.7,0.1944]
[1729309776678,0.7774,2646.4,2645.9,0.45279119]
[1729309776878,0.7774,2646.4,2646.0,0.28299187]
[1729309777075,0.7774,2646.4,2646.1,0.28299187]
[1729309777279,0.7774,2646.4,2645.9,0.45278695]
[1729309777481,0.7774,2646.4,2646.0,0.28300305]
[1729309777708,0.7774,2646.4,2646.1,0.28300568]
[1729309777917,0.7774,2646.4,2645.8,0.2]
[1729309778120,0.7774,2646.4,2645.9,0.73579446]
[1729309778420,0.7774,2646.4,2646.0,0.28299787]
[1729309778579,0.7774,2646.4,2646.1,0.28299787]
[1729309778779,0.7774,2646.4,2645.8,0.2]
[1729309779003,0.7774,2646.4,2645.9,0.7358052]
[1729309779216,0.7774,2646.4,2646.0,0.283002]
[1729309779419,0.7774,2646.4,2646.1,0.283002]
[1729309780105,0.7774,2646.4,2645.8,0.2]
[1729309780595,0.7774,2646.4,2645.9,0.2830124]
[1729309780803,0.7774,2646.4,2646.0,0.2830124]
[1729309781003,0.7774,2646.4,2646.1,0.28302372]
[1729309781299,0.7774,2646.4,2645.8,0.2]
[1729309781504,0.7774,2646.4,2645.9,0.28302781]
[1729309781700,0.7774,2646.4,2646.0,0.28302781]
[1729309781905,0.7774,2646.4,2645.8,0.2]
[1729309782233,0.7774,2646.4,2645.9,0.28302974]
[1729309782529,0.7774,2646.4,2646.0,0.28302974]
[1729309782692,0.7774,2646.4,2645.8,0.2]
[1729309783013,0.7774,2646.4,2645.9,0.28303396]
[1729309783334,0.7774,2646.4,2646.0,0.28303396]
[1729309783533,0.7774,2646.4,2645.8,0.2]
[1729309783985,0.7774,2646.4,2645.9,0.28304117]
[1729309784190,0.7774,2646.4,2646.0,0.28304117]
[1729309784414,0.7774,2646.4,2645.8,0.2]
[1729309784618,0.7774,2646.4,2645.9,0.28304404]
[1729309784933,0.7774,2646.4,2646.0,0.28304404]
[1729309785237,0.7774,2646.4,2645.8,0.2]
[1729309785533,0.7774,2646.4,2645.9,0.28304896]
[1729309785758,0.7774,2646.4,2646.0,0.28304896]
[1729309785965,0.7774,2646.4,2645.8,0.2]
[1729309786254,0.7774,2646.4,2645.9,0.28304956]
[1729309786424,0.7774,2646.4,2646.0,0.28304956]
[1729309786626,0.7774,2646.4,2645.6,1.56701297]
[1729309786960,0.7774,2646.4,2645.5,2.11108366]
[1729309786961,0.7774,2646.4,2645.7,4.11375149]
[1729309787126,0.7774,2646.4,2645.8,0.73594183]
[1729309787326,0.7774,2646.4,2645.9,0.28305455]
[1729309787527,0.7774,2646.4,2646.0,0.28305455]
[1729309787737,0.7774,2646.4,2645.8,0.45289197]
[1729309787941,0.7774,2646.4,2645.9,0.28305751]
[1729309788148,0.7774,2646.4,2646.0,0.28305751]
[1729309788361,0.7774,2646.4,2645.8,0.452893]
[1729309788667,0.7774,2646.4,2645.9,0.28306189]
[1729309788868,0.7774,2646.4,2646.0,0.28306189]
[1729309789038,0.7774,2646.4,2646.1,0.28306189]
[1729309789236,0.7774,2646.4,2645.7,3.37780966]
[1729309789237,0.7774,2646.4,2645.7,0.37780966]
[1729309789572,0.7774,2646.4,2645.8,0.73599995]
[1729309789867,0.7774,2646.4,2645.9,0.2830769]
[1729309790026,0.7774,2646.4,2646.0,0.2830769]
[1729309790228,0.7774,2646.4,2645.8,0.45291473]
[1729309790424,0.7774,2646.4,2645.9,0.28307574]
[1729309790655,0.7774,2646.4,2646.0,0.28308064]
[1729309790881,0.7774,2646.4,2645.7,0.01]
[1729309791087,0.7774,2646.4,2645.8,0.28308704]
[1729309791261,0.7774,2646.4,2645.9,0.28308704]
[1729309791454,0.7774,2646.4,2645.7,0.01]
[1729309791655,0.7774,2646.4,2645.8,0.73600665]
[1729309791862,0.7774,2646.4,2645.9,0.28307948]
[1729309792090,0.7774,2646.4,2646.0,0.28307948]
[1729309792389,0.7774,2646.4,2645.7,0.01]
[1729309792548,0.7774,2646.4,2645.8,0.73601027]
[1729309792888,0.7774,2646.4,2645.9,0.28308789]
[1729309793060,0.7774,2646.4,2646.0,0.28308789]
[1729309793245,0.7774,2646.4,2645.7,0.01]
[1729309793449,0.7774,2646.4,2645.8,0.28307887]
[1729309793688,0.7774,2646.4,2645.9,0.28307887]
[1729309793883,0.7774,2646.4,2646.0,0.28307887]
[1729309794061,0.7774,2646.4,2645.7,0.01]
[1729309794257,0.7774,2646.4,2645.8,0.28309208]
[1729309794457,0.7774,2646.4,2645.9,0.28309208]
[1729309794791,0.7774,2646.4,2646.0,0.28309363]
[1729309794980,0.7774,2646.4,2645.7,0.01]
[1729309795282,0.7774,2646.4,2645.8,0.7360112]
[1729309795490,0.7774,2646.4,2645.9,0.28308123]
[1729309795665,0.7774,2646.4,2646.0,0.28308123]
[1729309795865,0.7774,2646.4,2645.7,0.01]
[1729309796177,0.7774,2646.4,2645.8,1.39093047]
[1729309796377,0.7774,2646.4,2645.9,0.73602122]
[1729309796567,0.7774,2646.4,2646.0,0.28308947]
[1729309796754,0.7774,2646.4,2646.1,0.28308947]
[1729309796954,0.7774,2646.4,2645.9,0.452899]
[1729309797147,0.7774,2646.4,2646.0,0.2830529]
[1729309797349,0.7774,2646.4,2646.1,0.2830529]
[1729309797571,0.7774,2646.4,2645.9,0.45290405]
[1729309797899,0.7774,2646.4,2646.0,0.28305228]
[1729309798067,0.7774,2646.4,2646.1,0.28305228]
[1729309798274,0.7774,2646.4,2645.9,0.45291101]
[1729309798458,0.7774,2646.4,2646.0,0.28309686]
[1729309798658,0.7774,2646.4,2645.9,0.5029924]
[1729309798659,0.7774,2646.4,2646.1,0.28309686]
[1729309798992,0.7774,2646.4,2645.9,0.5029924]
[1729309799153,0.7774,2646.4,2646.0,0.28310461]
[1729309799354,0.7774,2646.4,2646.1,0.28310461]
[1729309799688,0.7774,2646.4,2645.7,1.57701297]
[1729309799994,0.7774,2646.4,2645.8,0.73612327]
[1729309800204,0.7774,2646.4,2645.9,0.73612327]
[1729309800370,0.7774,2646.4,2646.0,0.73615865]
[1729309800567,0.7774,2646.4,2645.7,4.57701297]
[1729309800568,0.7774,2646.4,2646.1,0.2831244]
[1729309800800,0.7774,2646.4,2646.2,0.2831244]
[1729309800999,0.7774,2646.4,2645.8,0.4530344]
[1729309801203,0.7774,2646.4,2645.9,1.23918599]
[1729309801512,0.7774,2646.4,2646.0,0.73618125]
[1729309801679,0.7774,2646.4,2646.1,0.28314685]
[1729309801879,0.7774,2646.4,2646.2,0.28314685]
[1729309802076,0.7774,2646.4,2646.0,0.4530293]
[1729309802389,0.7774,2646.4,2646.1,0.28314335]
[1729309802588,0.7774,2646.4,2646.1,0.2831417]
[1729309802780,0.7774,2646.4,2646.2,0.28313978]
[1729309802976,0.7774,2646.4,2646.0,0.4530236]
[1729309803188,0.7774,2646.4,2646.1,0.2831398]
[1729309803404,0.7774,2646.4,2645.9,0.50300474]
[1729309803603,0.7774,2646.4,2646.0,0.73615306]
[1729309803803,0.7774,2646.4,2646.1,0.28313579]
[1729309804034,0.7774,2646.4,2646.2,0.28313579]
[1729309804188,0.7774,2646.4,2646.0,0.45301762]
[1729309804387,0.7774,2646.4,2646.1,0.28313572]
[1729309804633,0.7774,2646.4,2646.2,0.28313572]
[1729309804929,0.7774,2646.4,2646.0,0.45301579]
[1729309805229,0.7774,2646.4,2646.1,0.28313492]
[1729309805412,0.7774,2646.4,2645.9,0.50300474]
[1729309805613,0.7774,2646.4,2646.0,0.7901295]
[1729309805797,0.7774,2646.4,2646.1,0.28312773]
[1729309806003,0.7774,2646.4,2646.2,0.28312773]
[1729309806326,0.7774,2646.4,2645.8,0.45301002]
[1729309806541,0.7774,2646.4,2645.9,0.73614423]
[1729309806708,0.7774,2646.4,2646.0,0.28313421]
[1729309807032,0.7774,2646.4,2646.1,0.28313421]
[1729309807220,0.7774,2646.4,2645.9,0.53131572]
[1729309807397,0.7774,2646.4,2646.0,0.28313363]
[1729309807597,0.7774,2646.4,2646.1,0.28313363]
[1729309807927,0.7774,2646.4,2645.9,0.53131572]
[1729309808134,0.7774,2646.4,2646.0,0.28313375]
[1729309808381,0.7774,2646.4,2646.1,0.28313375]
[1729309808528,0.7774,2646.4,2645.8,0.4530117]
[1729309808724,0.7774,2646.4,2645.9,0.73614568]
[1729309808923,0.7774,2646.4,2646.0,0.28313398]
[1729309809260,0.7774,2646.4,2646.1,0.28313398]
[1729309809462,0.7774,2646.4,2645.8,0.45301287]
[1729309809762,0.7774,2646.4,2645.9,1.23915001]
[1729309810063,0.7774,2646.4,2646.0,0.28313456]
[1729309810265,0.7774,2646.4,2646.1,0.28313421]
[1729309810561,0.7774,2646.4,2645.9,0.50300258]
[1729309810743,0.7774,2646.4,2646.0,0.28313397]
[1729309810951,0.7774,2646.4,2646.1,0.28313397]
[1729309811262,0.7774,2646.4,2645.9,0.50300258]
[1729309811462,0.7774,2646.4,2646.0,0.28313948]
[1729309811761,0.7774,2646.4,2646.1,0.28313948]
[1729309811967,0.7774,2646.4,2645.9,0.50300258]
[1729309812122,0.7774,2646.4,2646.0,0.28314153]
[1729309812323,0.7774,2646.4,2646.1,0.28314153]
[1729309812523,0.7774,2646.4,2645.9,0.50300258]
[1729309812754,0.7774,2646.4,2646.0,0.28314224]
[1729309812959,0.7774,2646.4,2646.1,0.28314224]
[1729309813262,0.7774,2646.4,2645.9,0.50300258]
[1729309813447,0.7774,2646.4,2646.0,0.28314272]
[1729309813653,0.7774,2646.4,2646.1,0.28314272]
[1729309813833,0.7774,2646.4,2646.2,0.28314272]
[1729309814038,0.7774,2646.4,2646.0,0.45302236]
[1729309814235,0.7774,2646.4,2645.9,0.50300258]
[1729309814460,0.7774,2646.4,2646.1,0.28314111]
[1729309814653,0.7774,2646.4,2645.9,0.50300258]
[1729309814935,0.7774,2646.4,2646.0,0.28314278]
[1729309815149,0.7774,2646.4,2646.1,0.28314278]
[1729309815352,0.7774,2646.4,2645.9,0.50300258]
[1729309815665,0.7774,2646.4,2646.0,0.35873155]
[1729309815888,0.7774,2646.4,2646.1,0.28315365]
[1729309816090,0.7774,2646.4,2646.2,0.28315365]
[1729309816266,0.7774,2646.4,2646.0,0.0755779]
[1729309816462,0.7774,2646.4,2646.1,0.28313958]
[1729309816663,0.7774,2646.4,2646.2,0.28313958]
[1729309816974,0.7774,2646.4,2645.9,0.50300258]
[1729309817190,0.7774,2646.4,2646.0,0.4901377]
[1729309817484,0.7774,2646.4,2646.1,0.28313614]
[1729309817691,0.7774,2646.4,2646.2,0.28313614]
[1729309817986,0.7774,2646.4,2646.0,0.20700156]
[1729309818355,0.7774,2646.4,2646.1,0.28314592]
[1729309818690,0.7774,2646.4,2646.0,0.20700156]
[1729309818691,0.7774,2646.4,2646.2,0.28314592]
[1729309818896,0.7774,2646.4,2646.0,0.20700156]
[1729309819051,0.7774,2646.4,2646.1,0.28314213]
[1729309819256,0.7774,2646.4,2646.2,0.28314213]
[1729309819458,0.7774,2646.4,2646.0,0.20700156]
[1729309819665,0.7774,2646.4,2646.1,0.28315636]
[1729309819898,0.7774,2646.4,2645.9,0.50300258]
[1729309820196,0.7774,2646.4,2646.0,0.28316097]
[1729309820494,0.7774,2646.4,2646.1,0.28316097]
[1729309820703,0.7774,2646.4,2645.7,4.57701297]
[1729309820997,0.7774,2646.4,2645.8,3.95851403]
[1729309821167,0.7774,2646.4,2645.9,0.28317005]
[1729309821379,0.7774,2646.4,2646.0,0.28317005]
[1729309821584,0.7774,2646.4,2646.1,0.28317005]
[1729309821790,0.7774,2646.4,2645.8,0.67534398]
[1729309822103,0.7774,2646.4,2645.9,0.28318566]
[1729309822310,0.7774,2646.4,2645.8,3.67534398]
[1729309822311,0.7774,2646.4,2645.8,0.67534398]
[1729309822603,0.7774,2646.4,2646.0,0.28318468]
[1729309822906,0.7774,2646.4,2646.1,0.28318468]
[1729309823111,0.7774,2646.4,2645.8,0.67534398]
[1729309823410,0.7774,2646.4,2645.9,0.28318536]
[1729309823566,0.7774,2646.4,2646.0,0.28318536]
[1729309823765,0.7774,2646.4,2646.1,0.28318536]
[1729309824073,0.7774,2646.4,2645.8,0.67534398]
[1729309824274,0.7774,2646.4,2645.9,0.80842169]
[1729309824467,0.7774,2646.4,2646.0,0.28318599]
[1729309824801,0.7774,2646.4,2646.1,0.28318599]
[1729309824965,0.7774,2646.4,2645.9,0.5252357]
[1729309825166,0.7774,2646.4,2646.0,0.28318579]
[1729309825371,0.7774,2646.4,2646.1,0.28318579]
[1729309825585,0.7774,2646.4,2645.9,0.5252357]
[1729309825879,0.7774,2646.4,2646.0,0.28318352]
[1729309826197,0.7774,2646.4,2646.1,0.28318352]
[1729309826405,0.7774,2646.4,2645.8,3.67534398]
[1729309826602,0.7774,2646.4,2645.9,0.80842369]
[1729309826905,0.7774,2646.4,2646.0,0.283188]
[1729309827109,0.7774,2646.4,2646.1,0.283188]
[1729309827276,0.7774,2646.4,2645.9,0.5252357]
[1729309827481,0.7774,2646.4,2646.0,0.28318456]
[1729309827677,0.7774,2646.4,2646.1,0.28318456]
[1729309828003,0.7774,2646.4,2645.7,4.57701297]
[1729309828179,0.7774,2646.4,2645.8,0.28318376]
[1729309828363,0.7774,2646.4,2645.7,4.57701297]
[1729309828563,0.7774,2646.4,2645.8,0.67534398]
[1729309828806,0.7774,2646.4,2645.9,0.28318205]
[1729309828997,0.7774,2646.4,2646.0,0.28318205]
[1729309829307,0.7774,2646.4,2646.1,0.28318205]
[1729309829505,0.7774,2646.4,2645.8,0.67534398]
[1729309829812,0.7774,2646.4,2645.9,0.28318125]
[1729309829983,0.7774,2646.4,2646.0,0.28318125]
[1729309830314,0.7774,2646.4,2646.1,0.28318125]
[1729309830601,0.7774,2646.4,2645.8,3.67534398]
[1729309830602,0.7774,2646.4,2645.8,0.67534398]
[1729309830837,0.7774,2646.4,2645.9,0.22523569]
[1729309831013,0.7774,2646.4,2645.9,0.50840972]
[1729309831297,0.7774,2646.4,2646.0,0.28317403]
[1729309831504,0.7774,2646.4,2646.1,0.28317403]
[1729309831690,0.7774,2646.4,2646.2,0.28317403]
[1729309832004,0.7774,2646.4,2645.9,0.22523569]
[1729309832204,0.7658,2647.1,2646.0,0.47757541]
[1729309832416,0.7658,2647.1,2646.1,2.04458838]
[1729309832579,0.7658,2647.1,2646.2,5.34537612]
[1729309832901,0.7658,2647.1,2646.3,0.28317541]
[1729309833092,0.7658,2647.1,2646.2,5.06220071]
[1729309833093,0.7658,2647.1,2646.4,0.28317541]
[1729309833291,0.59114924,2647.7,2646.7,0.55]
[1729309833495,0.7658,2647.7,2646.8,1.29380482]
[1729309833809,0.7658,2647.7,2646.9,0.52920025]
[1729309833981,0.7658,2647.7,2646.9,0.24602484]
[1729309834176,0.7658,2647.7,2646.7,1.01062941]
[1729309834388,0.7658,2647.7,2646.8,0.28263296]
[1729309834608,0.7658,2647.7,2646.7,1.01062941]
[1729309834925,0.7658,2647.7,2646.8,0.56526134]
[1729309835090,0.7658,2647.7,2646.8,3.28263414]
[1729309835285,0.7658,2647.7,2646.9,0.42932636]
[1729309835511,0.7658,2647.7,2646.8,0.28263414]
[1729309838184,0.7658,2647.7,2647.0,0.1944]
[1729309841501,0.7658,2647.7,2646.7,0.1944]
[1729309843091,0.7658,2647.7,2646.7,1.20502941]
[1729309843294,0.7658,2647.7,2646.7,0.1944]
[1729309843503,3.7768,2647.8,2646.3,0.1944]
[1729309843734,0.7775,2647.4,2646.3,0.1944]
[1729309843930,3.77719,2647.5,2645.8,0.1944]
[1729309843931,0.7775,2647.2,2645.8,0.1944]
[1729309846096,0.7775,2647.2,2646.1,3.0]
[1729309846296,0.7775,2647.2,2645.8,0.26966735]
[1729309846616,0.7775,2647.2,2646.1,3.0]
[1729309846932,0.7775,2647.0,2646.1,3.0]
[1729309847139,0.7775,2647.0,2645.8,0.26966735]
[1729309847899,0.7775,2647.0,2646.1,3.0]
[1729309848202,0.7775,2647.0,2645.8,0.26966735]
[1729309849527,0.7775,2647.0,2645.8,0.1944]
[1729309849728,0.7775,2647.0,2645.9,0.07557609]
[1729309849931,0.7775,2647.0,2646.1,3.0]
[1729309850139,0.7775,2647.0,2645.9,0.07557609]
[1729309850454,0.7775,2647.0,2646.1,3.0]
[1729309851050,0.7775,2647.0,2645.8,0.2699761]
[1729309854203,0.7775,2647.0,2646.1,3.0]
[1729309854944,0.7775,2647.0,2645.8,0.2699761]
[1729309859154,0.7775,2647.0,2646.2,0.1944]
[1729309859829,4.15455,2647.7,2645.7,1.57701297]
[1729309859830,0.7545,2647.6,2646.4,0.1944]
[1729309861966,0.7545,2647.3,2645.9,0.1944]
[1729309862130,0.7545,2647.1,2645.9,0.1944]
[1729309862329,3.77764,2647.2,2645.9,0.1944]
[1729309862330,0.7545,2646.9,2645.9,0.1944]
[1729309862574,0.7545,2646.7,2645.9,0.1944]
[1729309866462,0.7545,2646.7,2646.0,0.07528132]
[1729309867352,0.7545,2646.7,2645.9,0.1944]
[1729309868620,0.7545,2646.7,2645.9,3.1944]
[1729309869340,0.7545,2646.7,2645.9,0.1944]
[1729309869543,0.7545,2646.7,2646.0,0.02416254]
[1729309869856,0.7545,2646.7,2646.0,0.34601879]
[1729309870019,0.7545,2646.7,2646.0,0.02416254]
[1729309873441,0.7529,2647.2,2646.2,0.1944]
[1729309873646,0.7529,2647.2,2646.4,3.0]
[1729309873845,0.7529,2647.2,2645.8,1.56701297]
[1729309873846,0.7529,2647.2,2646.5,0.1944]
[1729309874283,0.7529,2647.6,2646.5,0.1944]
[1729309874444,0.859258,2647.5,2646.5,0.1944]
[1729309874648,0.7529,2647.6,2646.5,0.1944]
[1729309880401,0.8241,2647.5,2646.5,0.1944]
[1729309882104,0.7624,2647.8,2646.5,0.1944]
[1729309884069,0.7624,2647.7,2646.5,0.1944]
[1729309884389,0.7624,2647.5,2646.5,0.1944]
[1729309889541,0.7624,2647.5,2646.6,0.07555895]
[1729309889818,0.7624,2647.7,2646.7,0.1944]
[1729309890004,0.7624,2647.7,2646.9,0.1944]
[1729309895735,0.8235,2647.9,2646.9,0.1944]
[1729309895891,0.459998,2647.8,2646.9,0.1944]
[1729309896331,0.8235,2647.9,2647.0,0.07553419]
[1729309896548,0.8235,2647.9,2647.1,0.1944]
[1729309897406,8.2861,2648.2,2647.1,0.1944]
[1729309899746,7.462,2648.2,2647.1,0.1944]
[1729309900139,7.462,2648.2,2646.6,1.84929787]
[1729309900140,0.59088354,2648.3,2647.3,0.1944]
[1729309901297,1.02754389,2648.3,2647.4,0.07553369]
[1729309901498,1.02754389,2648.3,2647.0,0.1944]
[1729309901801,1.02754389,2648.3,2647.2,0.1944]
[1729309902825,0.59088354,2648.3,2647.2,0.1944]
[1729309903326,0.59088354,2648.3,2647.4,0.1944]
[1729309904449,0.59088354,2648.3,2647.6,0.1944]
[1729309911678,0.59088354,2648.3,2647.7,0.1944]
[1729309912658,0.02261042,2648.6,2647.7,0.3944]
[1729309912851,8.86216408,2648.8,2647.8,0.1944]
[1729309913057,0.88621641,2648.7,2647.8,0.1944]
[1729309915901,0.7732,2648.6,2647.8,0.1944]
[1729309916426,4.54878,2648.6,2647.8,0.1944]
[1729309916821,0.7732,2648.6,2647.8,0.1944]
[1729309934905,0.7732,2648.6,2646.7,1.92885048]
[1729309934906,0.7951,2648.3,2647.1,0.1944]
[1729309935166,0.457104,2648.2,2647.1,0.1944]
[1729309936246,0.7951,2648.3,2647.1,0.1944]
[1729309936443,0.7951,2648.3,2647.3,0.1944]
[1729309937654,0.7833,2648.5,2647.3,0.1944]
[1729309937970,0.88621641,2648.7,2647.5,0.1944]
[1729309942379,0.88621641,2648.7,2647.6,0.07553412]
[1729309942565,8.6385357,2648.8,2647.1,4.56701297]
[1729309942566,8.2453,2648.8,2647.7,0.1944]
[1729309942871,0.7833,2648.8,2647.7,0.1944]
[1729309943704,3.77536,2648.8,2647.7,0.1944]
[1729309943874,0.7833,2648.7,2647.7,0.1944]
[1729309944077,0.833406,2648.6,2647.7,0.1944]
[1729309947898,0.7833,2648.5,2647.7,0.1944]
[1729309948100,0.7833,2648.3,2647.7,0.1944]
[1729309954384,1.3637,2648.5,2647.7,0.1944]
[1729309962091,0.833406,2648.6,2647.7,0.1944]
[1729309962296,0.87933911,2648.9,2647.7,0.1944]
[1729309962550,1.27247044,2648.9,2647.7,0.1944]
[1729309962737,0.8137,2648.9,2647.7,0.1944]
[1729309963334,4.58887,2648.9,2647.7,0.1944]
[1729309963498,0.856487,2648.8,2647.7,0.1944]
[1729309977380,0.8137,2648.9,2647.7,0.1944]
[1729309979711,0.55,2648.9,2647.7,0.1944]
[1729309983406,3.77501,2649.0,2647.7,0.1944]
[1729309983407,0.55,2649.0,2647.7,0.1944]
[1729309984287,4.32509,2649.0,2647.7,0.1944]
[1729309987028,3.7752,2648.9,2647.7,0.1944]
[1729309987228,0.810029,2648.8,2647.7,0.1944]
[1729309987430,4.585329,2648.8,2647.7,0.1944]
[1729309988107,0.810029,2648.8,2647.7,0.1944]
[1729309989236,0.59080163,2648.6,2647.7,0.1944]
[1729309999119,4.60684,2648.7,2647.7,0.1944]
[1729309999320,0.5416869,2648.6,2647.7,0.1944]
[1729310002573,0.55,2648.5,2647.7,0.1944]
[1729310002862,4.32574,2648.5,2647.7,0.1944]
[1729310005865,8.10154,2648.5,2647.7,0.1944]
[1729310006233,4.32574,2648.5,2647.7,0.1944]
[1729310006437,0.88434269,2648.4,2647.7,0.1944]
[1729310014364,0.55,2648.5,2647.7,0.1944]
[1729310016975,4.32572,2648.5,2647.7,0.1944]
[1729310018651,0.5416869,2648.6,2647.7,0.1944]
[1729310025987,4.3172869,2648.6,2647.7,0.1944]
[1729310026287,3.7758,2648.5,2647.7,0.1944]
[1729310026481,4.28996869,2648.4,2647.7,0.1944]
[1729310028179,0.51409869,2648.4,2647.7,0.1944]
[1729310043670,4.29002869,2648.4,2647.7,0.1944]
[1729310045771,0.51409869,2648.4,2647.7,0.1944]
[1729310046975,3.77622,2648.2,2647.7,0.1944]
[1729310047279,0.755228,2648.1,2647.7,0.1944]
[1729310047484,3.77606,2648.3,2647.7,0.1944]
[1729310048069,7.55215,2648.3,2647.7,0.1944]
[1729310048316,7.55218,2648.3,2647.7,0.1944]
[1729310048513,3.77606,2648.3,2647.7,0.1944]
[1729310049585,4.29005869,2648.4,2647.7,0.1944]
[1729310049787,0.80658787,2648.3,2647.7,0.1944]
[1729310050188,3.77582,2648.5,2647.7,0.1944]
[1729310059924,0.59084409,2648.4,2647.7,0.1944]
[1729310086475,3.7753,2648.8,2647.7,0.1944]
[1729310086717,0.59077151,2648.6,2647.7,0.1944]
[1729310087146,3.7753,2648.8,2647.7,0.1944]
[1729310087345,4.5851289,2648.8,2647.7,0.1944]
[1729310095843,3.77518,2648.9,2647.9,0.1944]
[1729310096047,3.77515,2648.9,2647.9,0.1944]
[1729310096341,3.77536,2648.8,2647.9,0.1944]
[1729310096860,3.77536,2648.8,2647.9,0.2044]
[1729310097080,4.611051,2648.8,2647.9,0.2044]
[1729310098287,0.835691,2648.8,2647.9,0.2044]
[1729310098513,4.610991,2648.8,2647.9,0.2044]
[1729310099989,4.611001,2648.8,2647.9,0.2044]
[1729310101891,0.835691,2648.8,2647.9,0.2044]
[1729310102400,0.4610841,2648.7,2647.9,0.2044]
[1729310103380,0.4610841,2648.7,2647.9,0.1944]
[1729310108620,0.4610841,2648.7,2647.9,0.2044]
[1729310110281,3.77569,2648.6,2647.9,0.1944]
[1729310110489,7.55136,2648.6,2647.9,0.1944]
[1729310110825,3.77567,2648.6,2647.9,0.1944]
[1729310111921,7.55134,2648.6,2647.9,0.1944]
[1729310112321,3.77567,2648.6,2647.9,0.1944]
[1729310112622,0.460557,2648.5,2647.9,0.1944]